fUST/lending_fUST_20250823
["ID","MTS","AMOUNT","RATE_DAILY","PERIOD"]
[380983322,1755917444337,-153.0,0.000247,2]
[380983323,1755917444347,-294.0594923,0.000247,2]
[380983324,1755917444356,-160.9356585,0.000247,2]
[380983325,1755917444366,-581.2325412,0.000247,2]
[380983326,1755917444375,-160.9356585,0.000247,2]
[380983327,1755917444385,-153.0,0.000247,2]
[380983328,1755917444395,-160.9356585,0.000247,2]
[380983329,1755917444404,-581.2325412,0.000247,2]
[380983330,1755917444414,-500.01224273,0.000247,2]
[380983331,1755917444424,-2105.41764886,0.00024721,2]
[380983332,1755917444434,-647.12809774,0.00024776,2]
[380983333,1755917444443,-938.21597052,0.00024798,2]
[380983334,1755917444452,-3406.52128324,0.00024798,2]
[380983335,1755917444461,-153.0,0.000248,2]
[380983336,1755917444470,-294.0594923,0.000248,2]
[380983337,1755917444479,-160.9356585,0.000248,2]
[380983338,1755917444488,-581.2325412,0.000248,2]
[380983339,1755917444497,-160.9356585,0.000248,2]
[380983340,1755917444507,-581.2325412,0.000248,2]
[380983341,1755917444516,-277.57,0.00024884,3]
[380983342,1755917444525,-832.75,0.00024884,3]
[380983343,1755917444534,-413.14,0.00024884,10]
[380983344,1755917444543,-426.91,0.00024884,10]
[380983345,1755917444552,-355.76,0.00024884,10]
[380983346,1755917444561,-181.81902675,0.00024893,2]
[380983347,1755917444571,-500.0,0.00024893,2]
[380983348,1755917444579,-500.0,0.00024893,2]
[380983349,1755917444588,-500.0,0.00024893,2]
[380983350,1755917444597,-489.0364155,0.00024893,2]
[380983351,1755917444606,-302.40582169,0.00024894,2]
[380983352,1755917444616,-151.0,0.00024894,7]
[380983353,1755917444625,-151.0,0.00024894,7]
[380983354,1755917444635,-151.0,0.00024894,7]
[380983355,1755917444643,-151.0,0.00024894,7]
[380983356,1755917444653,-152.412669,0.00024894,7]
[380983357,1755917444663,-144737.72732387,0.00024894,2]
[380983373,1755917446792,-954.88957383,0.00024894,2]
[380983374,1755917446803,-333.67086873,0.00024894,2]
[380983380,1755917568060,200.350058,0.00013699,2]
[380983476,1755918564343,198.385217,0.00013699,2]
[380983508,1755918632684,-198.385217,0.00020187,2]
[380983510,1755918632694,-397.963755,0.00023179,2]
[380983512,1755918632703,-2445.3088096,0.00023595,2]
[380983514,1755918632712,-250.66938811,0.00023761,2]
[380983516,1755918632722,-201.76109289,0.00024054,2]
[380983518,1755918632732,-320.06350785,0.00024561,2]
[380983520,1755918632746,-386.9439334,0.000246,2]
[380983522,1755918632762,-386.9439334,0.000246,2]
[380983524,1755918632771,-168.0,0.00024689,2]
[380983526,1755918632780,-386.9439334,0.000247,2]
[380983528,1755918632790,-386.9439334,0.000247,2]
[380983530,1755918632799,-386.9439334,0.000247,2]
[380983533,1755918632808,-6641.80448686,0.0002474,2]
[380983535,1755918632817,-1175.27837758,0.0002474,2]
[380983537,1755918632826,-2030.296672,0.00024769,2]
[380983539,1755918632835,-199.0,0.00024784,10]
[380983541,1755918632844,-15674.50049849,0.00024793,2]
[380983543,1755918632854,-153.02142987,0.00024824,2]
[380983544,1755918632863,-292.03097916,0.00024885,2]
[380983545,1755918632872,-1000.0,0.00024885,2]
[380983547,1755918632881,-1000.0,0.00024885,2]
[380983549,1755918632890,-1000.0,0.00024885,2]
[380983551,1755918632899,-1000.0,0.00024885,2]
[380983552,1755918632908,-1000.0,0.00024885,2]
[380983553,1755918632917,-1000.0,0.00024885,2]
[380983554,1755918632927,-300.0,0.00024885,2]
[380983555,1755918632936,-1000.0,0.00024885,2]
[380983556,1755918632946,-1000.0,0.00024885,2]
[380983558,1755918632955,-300.0,0.00024885,2]
[380983559,1755918632964,-1000.0,0.00024885,2]
[380983561,1755918632974,-151.0,0.00024885,2]
[380983563,1755918632983,-300.0,0.00024885,2]
[380983565,1755918632992,-151.0,0.00024885,2]
[380983567,1755918633001,-219.52615819,0.00024885,2]
[380983569,1755918633010,-151.0,0.00024885,2]
[380983570,1755918633019,-300.0,0.00024885,2]
[380983572,1755918633030,-151.0,0.00024885,2]
[380983574,1755918633040,-151.0,0.00024885,2]
[380983576,1755918633050,-151.0,0.00024885,2]
[380983578,1755918633059,-151.0,0.00024885,2]
[380983580,1755918633068,-151.0,0.00024885,2]
[380983582,1755918633078,-258.73334638,0.00024885,2]
[380983584,1755918633088,-151.0,0.00024885,2]
[380983586,1755918633097,-151.0,0.00024885,2]
[380983588,1755918633109,-151.0,0.00024885,2]
[380983589,1755918633120,-151.0,0.00024885,2]
[380983590,1755918633132,-151.0,0.00024885,2]
[380983591,1755918633141,-151.0,0.00024885,2]
[380983592,1755918633151,-151.0,0.00024885,2]
[380983593,1755918633161,-151.0,0.00024885,2]
[380983594,1755918633172,-151.0,0.00024885,2]
[380983595,1755918633182,-151.0,0.00024885,2]
[380983596,1755918633203,-500.0,0.00024885,2]
[380983597,1755918633224,-151.0,0.00024885,2]
[380983598,1755918633247,-151.0,0.00024885,2]
[380983599,1755918633268,-500.0,0.00024885,2]
[380983600,1755918633279,-300.0,0.00024885,2]
[380983601,1755918633289,-151.0,0.00024885,2]
[380983602,1755918633299,-151.0,0.00024885,2]
[380983603,1755918633310,-500.0,0.00024885,2]
[380983604,1755918633320,-300.0,0.00024885,2]
[380983605,1755918633330,-500.0,0.00024885,2]
[380983606,1755918633340,-300.0,0.00024885,2]
[380983607,1755918633350,-151.0,0.00024885,2]
[380983608,1755918633363,-500.0,0.00024885,2]
[380983609,1755918633491,-293.9512221,0.00024885,2]
[380983610,1755918633501,-500.0,0.00024885,2]
[380983611,1755918633516,-151.0,0.00024885,2]
[380983612,1755918633527,-500.0,0.00024885,2]
[380983613,1755918633537,-151.0,0.00024885,2]
[380983614,1755918633547,-300.0,0.00024885,2]
[380983615,1755918633557,-500.0,0.00024885,2]
[380983616,1755918633567,-151.0,0.00024885,2]
[380983617,1755918633577,-300.0,0.00024885,2]
[380983618,1755918633588,-500.0,0.00024885,2]
[380983619,1755918633598,-154.7447449,0.00024885,2]
[380983620,1755918633609,-300.0,0.00024885,2]
[380983621,1755918633619,-300.0,0.00024885,2]
[380983622,1755918633629,-500.0,0.00024885,2]
[380983623,1755918633639,-300.0,0.00024885,2]
[380983624,1755918633648,-500.0,0.00024885,2]
[380983625,1755918633658,-300.0,0.00024885,2]
[380983626,1755918633668,-500.0,0.00024885,2]
[380983627,1755918633678,-300.0,0.00024885,2]
[380983628,1755918633687,-165.0,0.00024885,2]
[380983629,1755918633697,-500.0,0.00024893,2]
[380983630,1755918633711,-151.0,0.00024894,7]
[380983631,1755918633721,-151.0,0.00024894,7]
[380983632,1755918633730,-1014.17523971,0.00024894,2]
[380983633,1755918633741,-3775.9960793,0.00024898,2]
[380983634,1755918633751,-3060.2,0.000249,7]
[380983635,1755918633760,-151.0,0.000249,7]
[380983636,1755918633770,-195.841662,0.000249,7]
[380983637,1755918633780,-201.5768597,0.00024943,2]
[380983638,1755918633791,-199.0,0.00025211,10]
[380983639,1755918633801,-3438.0087,0.00025321,2]
[380983640,1755918633810,-151.37527878,0.00025321,7]
[380983641,1755918633820,-196.70542164,0.00025321,7]
[380983642,1755918633830,-151.38955005,0.00025321,7]
[380983643,1755918633839,-151.0,0.00025321,7]
[380983644,1755918633849,-151.60675902,0.00025321,7]
[380983645,1755918633861,-151.5049103,0.00025321,7]
[380983646,1755918633872,-152.20959494,0.00025321,7]
[380983647,1755918633882,-153.19856285,0.00025321,7]
[380983648,1755918633891,-151.93079653,0.00025321,7]
[380983649,1755918633901,-500.0,0.00025321,7]
[380983650,1755918633910,-151.0,0.00025321,7]
[380983651,1755918633919,-152.35246549,0.00025321,7]
[380983652,1755918633928,-151.0,0.00025321,7]
[380983653,1755918633939,-151.7910506,0.00025321,7]
[380983654,1755918633948,-152.66467323,0.00025321,7]
[380983655,1755918633958,-500.0,0.00025321,2]
[380983656,1755918633968,-151.0,0.00025321,7]
[380983657,1755918633978,-151.0,0.00025321,7]
[380983658,1755918633987,-12695.67094824,0.00025399,2]
[380983659,1755918633996,-376.14580871,0.00025399,2]
[380983660,1755918634007,-387.43,0.0002543,10]
[380983661,1755918634016,-322.86,0.0002543,10]
[380983662,1755918634026,-151.0,0.0002544,7]
[380983663,1755918634036,-151.0,0.0002544,7]
[380983664,1755918634045,-25187.3109928,0.0002544,2]
[380983665,1755918634055,-151.0,0.00025449,7]
[380983666,1755918634064,-151.0,0.0002545,7]
[380983667,1755918634074,-151.0,0.0002545,7]
[380983668,1755918634083,-194.410334,0.0002545,7]
[380983669,1755918634093,-155.014656,0.0002545,7]
[380983670,1755918634102,-151.0,0.0002545,7]
[380983671,1755918634112,-201.243398,0.0002545,7]
[380983672,1755918634121,-151.0,0.0002545,7]
[380983673,1755918634131,-151.0,0.0002545,7]
[380983674,1755918634140,-151.882218,0.00025451,7]
[380983675,1755918634149,-501.92575231,0.00025473,2]
[380983676,1755918634159,-185.32,0.00025507,3]
[380983677,1755918634168,-160.0,0.00025524,3]
[380983678,1755918634181,-556.01,0.00025585,3]
[380983679,1755918634191,-151.0,0.00025595,7]
[380983680,1755918634200,-500.0,0.00025595,7]
[380983681,1755918634209,-151.0,0.00025595,7]
[380983682,1755918634220,-151.0,0.00025595,7]
[380983683,1755918634230,-500.0,0.00025595,2]
[380983684,1755918634239,-151.0,0.00025595,7]
[380983685,1755918634249,-151.0,0.00025595,7]
[380983686,1755918634260,-168.0,0.00025608,2]
[380983687,1755918634269,-443.0,0.0002561,2]
[380983688,1755918634279,-155.71,0.00025624,7]
[380983689,1755918634296,-370.64,0.00025664,3]
[380983690,1755918634312,-160.0,0.00025668,4]
[380983691,1755918634322,-442.0,0.00025672,2]
[380983692,1755918634331,-500.0,0.000257,2]
[380983693,1755918634341,-500.0,0.000257,2]
[380983694,1755918634350,-111.27170997,0.00025709,2]
[380983696,1755918638615,-408.0,0.00024654,2]
[380983697,1755918638626,-199.0,0.00024684,10]
[380983698,1755918638636,-151.0,0.00025321,2]
[380983699,1755918638646,-198.0,0.00025321,7]
[380983700,1755918638655,-500.0,0.00025448,2]
[380983701,1755918638665,-500.0,0.00025448,2]
[380983702,1755918638675,-500.0,0.00025448,2]
[380983703,1755918638684,-500.0,0.00025448,2]
[380983704,1755918638695,-500.0,0.00025448,2]
[380983705,1755918638704,-500.0,0.00025448,2]
[380983706,1755918638714,-309.30788442,0.00025448,2]
[380983707,1755918638723,-500.0,0.00025448,2]
[380983708,1755918638732,-500.0,0.00025448,2]
[380983709,1755918638741,-500.0,0.00025448,2]
[380983710,1755918638751,-252.96175762,0.00025448,2]
[380983711,1755918638760,-500.0,0.00025448,2]
[380983712,1755918638770,-500.0,0.00025448,2]
[380983713,1755918638779,-500.0,0.00025448,2]
[380983714,1755918638788,-173.7650121,0.00025448,2]
[380983715,1755918638798,-307.62007646,0.00025448,2]
[380983716,1755918638807,-500.0,0.00025448,2]
[380983717,1755918638817,-500.0,0.00025448,2]
[380983718,1755918638826,-500.0,0.00025448,2]
[380983719,1755918638835,-500.0,0.00025448,2]
[380983720,1755918638844,-500.0,0.00025448,2]
[380983721,1755918638853,-205.36546916,0.00025448,2]
[380983722,1755918638864,-500.0,0.00025448,2]
[380983723,1755918638873,-500.0,0.00025448,2]
[380983724,1755918638883,-500.0,0.00025448,2]
[380983725,1755918638892,-286.29026371,0.00025448,2]
[380983726,1755918638902,-519.03597142,0.00025448,2]
[380983727,1755918638911,-500.0,0.00025448,2]
[380983728,1755918638923,-500.0,0.00025448,2]
[380983729,1755918638931,-500.0,0.00025448,2]
[380983730,1755918638941,-500.0,0.00025448,2]
[380983731,1755918638950,-500.0,0.00025448,2]
[380983732,1755918638960,-500.0,0.00025448,2]
[380983733,1755918638969,-500.0,0.00025448,2]
[380983734,1755918638980,-500.0,0.00025448,2]
[380983735,1755918638990,-500.0,0.00025448,2]
[380983736,1755918638999,-500.0,0.00025448,2]
[380983737,1755918639009,-500.0,0.00025448,2]
[380983738,1755918639019,-500.0,0.00025448,2]
[380983739,1755918639029,-500.0,0.00025448,2]
[380983740,1755918639038,-500.0,0.00025448,2]
[380983741,1755918639048,-500.0,0.00025448,2]
[380983742,1755918639058,-500.0,0.00025448,2]
[380983743,1755918639068,-500.0,0.00025448,2]
[380983745,1755918639077,-500.0,0.00025448,2]
[380983746,1755918639087,-500.0,0.00025448,2]
[380983748,1755918639097,-636.16270011,0.00025448,2]
[380983749,1755918639107,-500.0,0.00025448,2]
[380983750,1755918639118,-500.0,0.00025448,2]
[380983751,1755918639127,-500.0,0.00025448,2]
[380983752,1755918639137,-500.0,0.00025448,2]
[380983753,1755918639147,-500.0,0.00025448,2]
[380983754,1755918639156,-500.0,0.00025448,2]
[380983755,1755918639166,-500.0,0.00025448,2]
[380983756,1755918639175,-500.0,0.00025448,2]
[380983757,1755918639185,-500.0,0.00025448,2]
[380983758,1755918639195,-500.0,0.00025448,2]
[380983759,1755918639204,-500.0,0.00025448,2]
[380983760,1755918639214,-500.0,0.00025448,2]
[380983761,1755918639224,-500.0,0.00025448,2]
[380983762,1755918639233,-500.0,0.00025448,2]
[380983763,1755918639242,-500.0,0.00025448,2]
[380983764,1755918639251,-500.0,0.00025448,2]
[380983765,1755918639260,-500.0,0.00025448,2]
[380983766,1755918639269,-151.0,0.00025595,2]
[380983767,1755918639278,-388.72829003,0.00025709,2]
[380983768,1755918639288,-186.755591,0.00025724,7]
[380983769,1755918639297,-155.71,0.00025724,7]
[380983770,1755918639306,-168.0,0.00025738,2]
[380983771,1755918639315,-151.0,0.00025748,7]
[380983772,1755918639324,-151.0,0.00025748,7]
[380983773,1755918639334,-232.37252479,0.00025748,7]
[380983774,1755918639343,-150.0,0.00025773,2]
[380983775,1755918639352,-215.90555669,0.00025811,2]
[380983776,1755918639363,-160.0,0.00025811,5]
[380983777,1755918639372,-501.76618257,0.00025815,2]
[380983778,1755918639381,-500.0,0.00025815,2]
[380983779,1755918639390,-155.71401259,0.00025824,7]
[380983780,1755918639400,-217.0334113,0.00025869,7]
[380983781,1755918639410,-160.0,0.00025869,7]
[380983782,1755918639419,-417.15472785,0.00025869,7]
[380983783,1755918639430,-160.0,0.00025869,7]
[380983784,1755918639442,-844.50316758,0.00025869,7]
[380983785,1755918639452,-199.92297028,0.00025869,7]
[380983786,1755918639461,-500.0,0.00025869,7]
[380983787,1755918639470,-200.09481625,0.00025869,7]
[380983788,1755918639480,-198.0,0.00025869,7]
[380983789,1755918639490,-151.0,0.00025869,7]
[380983790,1755918639499,-201.85758733,0.00025869,2]
[380983791,1755918639508,-168.0,0.00025889,2]
[380983792,1755918639519,-160.0,0.00025905,2]
[380983793,1755918639528,-206.969,0.00025955,2]
[380983794,1755918639538,-160.0,0.00025955,6]
[380983795,1755918639546,-221.725,0.00026054,2]
[380983796,1755918639556,-204.131,0.00026054,2]
[380983797,1755918639566,-261.481,0.00026054,2]
[380983798,1755918639576,-219.772,0.00026054,2]
[380983799,1755918639585,-976.179,0.00026054,2]
[380983800,1755918639595,-2154.0,0.00026054,2]
[380983801,1755918639604,-640.115,0.00026054,2]
[380983802,1755918639615,-160.0,0.00026098,7]
[380983803,1755918639624,-168.0,0.0002612,2]
[380983804,1755918639633,-150.0,0.00026127,7]
[380983805,1755918639642,-500.0,0.00026143,7]
[380983806,1755918639651,-151.0,0.00026143,7]
[380983807,1755918639660,-150.0,0.00026227,7]
[380983808,1755918639670,-160.0,0.00026241,8]
[380983809,1755918639679,-1000.0,0.00026248,2]
[380983810,1755918639688,-1000.0,0.00026248,2]
[380983811,1755918639698,-151.0,0.00026254,2]
[380983812,1755918639708,-1307.81703894,0.00026263,2]
[380983813,1755918639718,-151.0,0.0002631,7]
[380983814,1755918639728,-151.0,0.0002631,7]
[380983815,1755918639738,-151.0,0.0002631,7]
[380983816,1755918639747,-300.91766464,0.00026321,2]
[380983817,1755918639756,-442.0,0.00026323,2]
[380983818,1755918639766,-150.0,0.00026327,7]
[380983819,1755918639775,-25187.3109928,0.00026363,2]
[380983820,1755918639785,-151.0,0.00026363,7]
[380983821,1755918639795,-151.0,0.00026363,7]
[380983822,1755918639804,-342.30546957,0.00026363,2]
[380983823,1755918639814,-306.8395594,0.00026364,2]
[380983824,1755918639824,-500.0,0.00026373,2]
[380983825,1755918639833,-150.39251112,0.00026373,2]
[380983826,1755918639843,-500.0,0.00026373,2]
[380983827,1755918639853,-500.0,0.00026373,2]
[380983828,1755918639957,-151.0,0.00026373,7]
[380983829,1755918639966,-151.0,0.00026373,7]
[380983830,1755918639976,-160.0,0.00026385,9]
[380983831,1755918639985,-1157.4,0.000264,7]
[380983832,1755918639994,-254.23,0.000264,7]
[380983833,1755918640003,-500.0,0.00026401,2]
[380983834,1755918640013,-500.0,0.00026417,7]
[380983835,1755918640022,-151.0,0.00026417,7]
[380983836,1755918640032,-150.0,0.00026427,7]
[380983837,1755918640041,-260.0,0.00026453,2]
[380983838,1755918640050,-168.0,0.00026515,2]
[380983839,1755918640059,-150.0,0.00026527,7]
[380983840,1755918640069,-160.0,0.00026528,10]
[380983841,1755918640078,-168.0,0.00026551,2]
[380983842,1755918640088,-3060.2,0.000266,7]
[380983843,1755918640097,-150.0,0.00026627,7]
[380983844,1755918640106,-199.0,0.00026649,20]
[380983845,1755918640117,-160.0,0.00026671,11]
[380983846,1755918640126,-501.43720702,0.00026673,2]
[380983847,1755918640136,-500.0,0.00026673,2]
[380983848,1755918640145,-198.385217,0.00026676,2]
[380983849,1755918640155,-514.97037334,0.00026691,7]
[380983850,1755918640164,-153.51644454,0.00026691,7]
[380983851,1755918640174,-23216.25,0.000267,2]
[380983852,1755918640183,-151.0,0.000267,7]
[380983853,1755918640192,-151.0,0.000267,7]
[380983854,1755918640202,-187.061354,0.000267,7]
[380983855,1755918640212,-151.0,0.000267,7]
[380983856,1755918640222,-151.0,0.000267,7]
[380983857,1755918640233,-168.0,0.00026704,2]
[380983858,1755918640242,-1200.0,0.00026712,2]
[380983859,1755918640251,-150.0,0.00026727,7]
[380983860,1755918640260,-199.0,0.00026749,20]
[380983861,1755918640270,-1307.81703894,0.00026766,2]
[380983862,1755918640279,-501.213037,0.00026796,2]
[380983863,1755918640289,-354.97584043,0.00026796,2]
[380983864,1755918640299,-160.0,0.00026815,12]
[380983865,1755918640308,-500.0,0.0002682,2]
[380983866,1755918640318,-150.0,0.00026827,7]
[380983867,1755918640327,-370.64,0.00026877,3]
[380983869,1755918640337,-442.0,0.00026891,2]
[380983871,1755918640346,-686.94659436,0.00026921,2]
[380983873,1755918640356,-1000.0,0.00026921,2]
[380983875,1755918640368,-164.78490728,0.00026921,2]
[380983877,1755918640379,-150.0,0.00026927,7]
[380983879,1755918640389,-160.0,0.00026958,13]
[380983881,1755918640399,-360.0,0.00027001,2]
[380983883,1755918640409,-255.68782132,0.00027025,2]
[380983885,1755918640419,-159.017839,0.00027025,2]
[380983887,1755918640428,-150.0,0.00027027,7]
[380983889,1755918640439,-741.28,0.00027034,3]
[380983891,1755918640451,-318.45078038,0.00027041,30]
[380983893,1755918640460,-700.0,0.00027067,2]
[380983895,1755918640470,-151.0,0.00027073,7]
[380983897,1755918640481,-263.696474,0.00027073,7]
[380983899,1755918640491,-25187.3109928,0.00027073,2]
[380983901,1755918640501,-151.0,0.00027079,7]
[380983903,1755918640511,-151.0,0.00027079,7]
[380983905,1755918640522,-153.0,0.0002708,2]
[380983907,1755918640532,-153.0,0.0002708,2]
[380983909,1755918640542,-153.0,0.0002708,2]
[380983911,1755918640551,-153.0,0.0002708,2]
[380983913,1755918640561,-153.0,0.0002708,2]
[380983915,1755918640570,-153.0,0.0002708,2]
[380983916,1755918640580,-153.0,0.0002708,2]
[380983918,1755918640589,-153.0,0.0002708,2]
[380983920,1755918640599,-153.0,0.0002708,2]
[380983922,1755918640609,-153.0,0.0002708,2]
[380983924,1755918640620,-153.0,0.0002708,2]
[380983926,1755918640630,-153.0,0.0002708,2]
[380983928,1755918640639,-153.0,0.0002708,2]
[380983930,1755918640648,-153.0,0.0002708,2]
[380983932,1755918640658,-153.0,0.00027083,2]
[380983934,1755918640669,-153.0,0.00027083,2]
[380983936,1755918640678,-153.0,0.00027083,2]
[380983938,1755918640687,-153.0,0.00027083,2]
[380983940,1755918640696,-153.0,0.00027083,2]
[380983942,1755918640706,-153.0,0.00027083,2]
[380983944,1755918640715,-153.0,0.00027083,2]
[380983946,1755918640724,-153.0,0.00027083,2]
[380983948,1755918640733,-442.0,0.00027099,7]
[380983950,1755918640743,-160.0,0.00027102,14]
[380983952,1755918640752,-168.0,0.00027122,2]
[380983954,1755918640761,-150.0,0.00027127,7]
[380983956,1755918640770,-159.017839,0.00027138,2]
[380983958,1755918640780,-318.45078038,0.00027178,30]
[380983960,1755918640789,-1000.0,0.00027221,2]
[380983962,1755918640798,-150.0,0.00027227,7]
[380983964,1755918640807,-160.0,0.00027245,15]
[380983966,1755918640816,-166.41268938,0.00027245,5]
[380983968,1755918640827,-159.017839,0.0002725,2]
[380983970,1755918640837,-168.0,0.00027258,2]
[380983972,1755918640847,-1307.81703894,0.00027269,2]
[380983974,1755918640856,-11567.41755507,0.0002729,7]
[380983976,1755918640866,-318.45078038,0.00027315,30]
[380983978,1755918640876,-150.0,0.00027327,7]
[380983980,1755918640885,-5000.0,0.00027363,3]
[380983982,1755918640895,-503.70939151,0.0002737,5]
[380983984,1755918640905,-500.0,0.00027393,2]
[380983986,1755918640914,-150.0,0.00027427,15]
[380983988,1755918640923,-442.0,0.0002745,2]
[380983990,1755918640933,-318.45078038,0.00027452,30]
[380983992,1755918640943,-1500.0,0.00027468,5]
[380983994,1755918640952,-150.0,0.000275,2]
[380983996,1755918640961,-150.0,0.00027527,15]
[380983998,1755918640971,-168.0,0.00027533,2]
[380984000,1755918640980,-348.6925412,0.00027549,2]
[380984002,1755918640989,-318.45078038,0.00027562,30]
[380984004,1755918640999,-151.0,0.00027623,2]
[380984006,1755918641008,-150.0,0.00027627,15]
[380984008,1755918641018,-168.0,0.00027643,2]
[380984010,1755918641028,-408.0,0.00027654,2]
[380984012,1755918641038,-318.45078038,0.00027699,30]
[380984014,1755918641048,-150.14564285,0.00027727,15]
[380984016,1755918641057,-504.81523867,0.00027768,5]
[380984018,1755918641068,-1307.81703894,0.00027772,2]
[380984020,1755918641078,-1000.0,0.000278,5]
[380984022,1755918641087,-1000.0,0.000278,7]
[380984024,1755918641097,-1002.597299,0.000278,2]
[380984026,1755918641106,-1200.0,0.00027808,7]
[380984028,1755918641117,-318.45078038,0.00027836,30]
[380984030,1755918641125,-1157.4,0.000279,7]
[380984032,1755918641135,-168.0,0.00027907,2]
[380984034,1755918641145,-318.45078038,0.00027973,30]
[380984036,1755918641156,-700.0,0.00027991,2]
[380984038,1755918641166,-4638.10843119,0.00028,2]
[380984040,1755918641176,-1019.8997314,0.00028016,5]
[380984042,1755918641187,-150.0,0.00028073,5]
[380984044,1755918641198,-318.45078038,0.00028082,30]
[380984046,1755918641210,-25187.3109928,0.0002809,2]
[380984049,1755918641221,-23216.25,0.000281,2]
[380984051,1755918641232,-3060.2,0.000281,7]
[380984052,1755918641243,-214.0,0.000282,120]
[380984055,1755918641255,-318.45078038,0.00028219,30]
[380984057,1755918641265,-172.77903988,0.00028275,2]
[380984059,1755918641275,-1307.81703894,0.00028275,2]
[380984061,1755918641286,-159.0,0.000283,30]
[380984062,1755918641296,-157.0,0.000283,33]
[380984065,1755918641307,-1000.0,0.000283,2]
[380984067,1755918641317,-168.0,0.00028319,2]
[380984069,1755918641327,-318.45078038,0.00028356,30]
[380984071,1755918641340,-151123.865957,0.0002836,2]
[380984073,1755918641349,-150.0,0.00028364,30]
[380984075,1755918641359,-150.0,0.00028364,30]
[380984077,1755918641376,-375988.6793284,0.0002837,15]
[380984079,1755918641386,-302.0,0.00028375,30]
[380984081,1755918641396,-150.0,0.00028375,2]
[380984083,1755918641406,-134480.96049215,0.00028375,20]
[380984121,1755918641773,-48806.54172986,0.00028375,20]
[380984593,1755918646630,-269.05,0.0002669,10]
[380984595,1755918646639,-870.95154028,0.00028375,20]
[380984601,1755918646680,-10367.84507671,0.00028375,20]
[380984603,1755918646692,-771.4533225,0.00028375,20]
[380984904,1755918971581,500.02767913,0.00027397,120]
[380984949,1755919665749,5015.61390882,0.00028373,30]
[380984959,1755919763142,192.744982,0.00013699,2]
[380984971,1755919831733,-500.0,0.00020187,2]
[380984973,1755919831743,-192.744982,0.00020187,2]
[380984975,1755919831753,-763.0,0.00022,7]
[380984977,1755919831762,-160.85303124,0.00024588,2]
[380984979,1755919831772,-5078.0,0.000246,10]
[380984981,1755919831782,-376.14580871,0.00025221,2]
[380984983,1755919831792,-500.0,0.00025882,2]
[380984985,1755919831801,-215.94678008,0.00025882,2]
[380984987,1755919831812,-300.0,0.00025956,20]
[380984990,1755919831825,-141.70500544,0.00026,30]
[380984992,1755919831840,-955.25619572,0.00026,30]
[380985003,1755919837727,-199.0,0.000245,10]
[380985005,1755919837737,-622.81361045,0.00026,30]
[380985006,1755919837746,-1028.3685804,0.00026021,2]
[380985007,1755919837755,-500.0,0.00026079,2]
[380985009,1755919837765,-151.0,0.0002609,2]
[380985010,1755919837774,-151.0,0.0002609,2]
[380985011,1755919837783,-151.0,0.0002609,2]
[380985013,1755919837793,-151.0,0.0002609,2]
[380985014,1755919837802,-500.0,0.0002609,2]
[380985015,1755919837812,-500.0,0.0002609,2]
[380985016,1755919837822,-500.0,0.0002609,2]
[380985017,1755919837833,-500.0,0.0002609,2]